[Event "Titled Tuesday Blitz April 25 Late 2023"]
[White "Hamitevici, Vladimir"]
[Black "Gerbelli Neto, Eduardo"]
[WhiteFideId "13902393"]
[BlackFideId "2103281"]
[WhiteElo "2401"]
[BlackElo "2178"]
[Result "1-0"]
[Round "02"]
[TimeControl "180+2"]
[Date "2023.04.25"]
[WhiteClock "0:00:13"]
[BlackClock "0:00:10"]

1. d4 {[%clk 0:03:00]}  d5 {[%clk 0:02:59]} 2. Bf4 {[%clk 0:03:01]}  Nf6 {[%clk 0:02:59]} 3. e3 {[%clk 0:03:01]}  Bf5 {[%clk 0:02:57]} 4. c4 {[%clk 0:02:59]}  c6 {[%clk 0:02:53]} 5. Nc3 {[%clk 0:02:58]}  e6 {[%clk 0:02:52]} 6. Qb3 {[%clk 0:02:57]}  Qb6 {[%clk 0:02:49]} 7. c5 {[%clk 0:02:57]}  Qxb3 {[%clk 0:02:49]} 8. axb3 {[%clk 0:02:57]}  a6 {[%clk 0:02:46]} 9. b4 {[%clk 0:02:57]}  Nbd7 {[%clk 0:02:40]} 10. b5 {[%clk 0:02:57]}  cxb5 {[%clk 0:02:40]} 11. Nxb5 {[%clk 0:02:48]}  Rc8 {[%clk 0:02:40]} 12. Nd6+ {[%clk 0:02:45]}  Bxd6 {[%clk 0:02:40]} 13. Bxd6 {[%clk 0:02:46]}  Ne4 {[%clk 0:02:40]} 14. Bg3 {[%clk 0:02:42]}  e5 {[%clk 0:02:28]} 15. Nf3 {[%clk 0:02:35]}  exd4 {[%clk 0:02:28]} 16. exd4 {[%clk 0:02:35]}  O-O {[%clk 0:02:25]} 17. Nh4 {[%clk 0:02:15]}  Nxg3 {[%clk 0:02:19]} 18. hxg3 {[%clk 0:02:13]}  Rfe8+ {[%clk 0:02:19]} 19. Kd2 {[%clk 0:02:13]}  Be6 {[%clk 0:02:15]} 20. Bd3 {[%clk 0:02:04]}  Nf6 {[%clk 0:02:15]} 21. f3 {[%clk 0:01:59]}  g6 {[%clk 0:02:12]} 22. g4 {[%clk 0:01:57]}  Kg7 {[%clk 0:02:05]} 23. g3 {[%clk 0:01:57]}  Bd7 {[%clk 0:01:58]} 24. Ng2 {[%clk 0:01:50]}  h5 {[%clk 0:01:34]} 25. g5 {[%clk 0:01:42]}  Nh7 {[%clk 0:01:32]} 26. f4 {[%clk 0:01:40]}  Nf8 {[%clk 0:01:32]} 27. Ne1 {[%clk 0:01:32]}  Bg4 {[%clk 0:01:27]} 28. Nc2 {[%clk 0:01:30]}  Ne6 {[%clk 0:01:24]} 29. b4 {[%clk 0:01:28]}  Nc7 {[%clk 0:01:20]} 30. Rae1 {[%clk 0:01:24]}  Rxe1 {[%clk 0:01:18]} 31. Rxe1 {[%clk 0:01:25]}  Kf8 {[%clk 0:01:18]} 32. Ne3 {[%clk 0:01:23]}  Bd7 {[%clk 0:01:10]} 33. f5 {[%clk 0:01:20]}  gxf5 {[%clk 0:01:03]} 34. Bxf5 {[%clk 0:01:21]}  Bxf5 {[%clk 0:00:53]} 35. Nxf5 {[%clk 0:01:22]}  Ne6 {[%clk 0:00:54]} 36. g6 {[%clk 0:01:19]}  Rd8 {[%clk 0:00:41]} 37. gxf7 {[%clk 0:00:54]}  Kxf7 {[%clk 0:00:42]} 38. Nd6+ {[%clk 0:00:51]}  Kf6 {[%clk 0:00:41]} 39. Rf1+ {[%clk 0:00:42]}  Kg6 {[%clk 0:00:38]} 40. Kd3 {[%clk 0:00:33]}  Ng5 {[%clk 0:00:36]} 41. Nxb7 {[%clk 0:00:31]}  Rb8 {[%clk 0:00:35]} 42. c6 {[%clk 0:00:30]}  Ne4 {[%clk 0:00:35]} 43. c7 {[%clk 0:00:29]}  Rc8 {[%clk 0:00:35]} 44. Rc1 {[%clk 0:00:27]}  Kf6 {[%clk 0:00:31]} 45. Rc6+ {[%clk 0:00:27]}  Ke7 {[%clk 0:00:31]} 46. Nc5 {[%clk 0:00:26]}  Nd6 {[%clk 0:00:28]} 47. Nxa6 {[%clk 0:00:22]}  Kd7 {[%clk 0:00:24]} 48. Nb8+ {[%clk 0:00:23]}  Ke7 {[%clk 0:00:23]} 49. Rc5 {[%clk 0:00:23]}  Ke6 {[%clk 0:00:22]} 50. Na6 {[%clk 0:00:19]}  Kd7 {[%clk 0:00:20]} 51. b5 {[%clk 0:00:19]}  Ke6 {[%clk 0:00:18]} 52. b6 {[%clk 0:00:18]}  Nb7 {[%clk 0:00:18]} 53. Rc6+ {[%clk 0:00:16]}  Kd7 {[%clk 0:00:19]} 54. Rh6 {[%clk 0:00:16]}  Rg8 {[%clk 0:00:14]} 55. Nc5+ {[%clk 0:00:16]}  Nxc5+ {[%clk 0:00:14]} 56. dxc5 {[%clk 0:00:17]}  Rxg3+ {[%clk 0:00:12]} 57. Kd4 {[%clk 0:00:16]}  Rg1 {[%clk 0:00:10]} 58. Rd6+ {[%clk 0:00:13]} 1-0


[Site "https://www.chess.com"]

[Event "Titled Tuesday Blitz April 25 Late 2023"]
[White "Perske, Thore"]
[Black "Van Foreest, Machteld"]
[WhiteFideId "12902195"]
[BlackFideId "1051563"]
[WhiteElo "2336"]
[BlackElo "2018"]
[Result "1-0"]
[Round "02"]
[TimeControl "180+2"]
[Date "2023.04.25"]
[WhiteClock "0:00:23"]
[BlackClock "0:00:01"]

1. d4 {[%clk 0:02:56]}  Nf6 {[%clk 0:02:58]} 2. g3 {[%clk 0:02:52]}  e6 {[%clk 0:02:57]} 3. Bg2 {[%clk 0:02:52]}  d5 {[%clk 0:02:57]} 4. Nf3 {[%clk 0:02:52]}  Bd6 {[%clk 0:02:55]} 5. O-O {[%clk 0:02:51]}  O-O {[%clk 0:02:55]} 6. c4 {[%clk 0:02:52]}  c6 {[%clk 0:02:52]} 7. Nfd2 {[%clk 0:02:52]}  Nbd7 {[%clk 0:02:50]} 8. Nc3 {[%clk 0:02:52]}  b6 {[%clk 0:02:48]} 9. e4 {[%clk 0:02:52]}  dxe4 {[%clk 0:02:19]} 10. Ndxe4 {[%clk 0:02:53]}  Nxe4 {[%clk 0:02:16]} 11. Nxe4 {[%clk 0:02:54]}  Bc7 {[%clk 0:02:16]} 12. Bg5 {[%clk 0:02:40]}  f6 {[%clk 0:02:13]} 13. Be3 {[%clk 0:02:39]}  Bb7 {[%clk 0:02:08]} 14. Qe2 {[%clk 0:02:29]}  e5 {[%clk 0:02:04]} 15. Rad1 {[%clk 0:02:19]}  exd4 {[%clk 0:01:53]} 16. Bxd4 {[%clk 0:02:13]}  Qe8 {[%clk 0:01:53]} 17. Rfe1 {[%clk 0:02:06]}  c5 {[%clk 0:01:40]} 18. Bc3 {[%clk 0:01:52]}  Rb8 {[%clk 0:01:39]} 19. Qg4 {[%clk 0:01:45]}  Ne5 {[%clk 0:01:25]} 20. Bxe5 {[%clk 0:01:15]}  Bxe5 {[%clk 0:01:21]} 21. Nd6 {[%clk 0:01:10]}  Bc8 {[%clk 0:01:10]} 22. Qe2 {[%clk 0:00:28]}  Qe7 {[%clk 0:00:39]} 23. f4 {[%clk 0:00:24]}  Bxd6 {[%clk 0:00:21]} 24. Qxe7 {[%clk 0:00:25]}  Bxe7 {[%clk 0:00:21]} 25. Rxe7 {[%clk 0:00:26]}  Bg4 {[%clk 0:00:19]} 26. Rde1 {[%clk 0:00:24]}  a5 {[%clk 0:00:18]} 27. Bd5+ {[%clk 0:00:23]}  Kh8 {[%clk 0:00:17]} 28. Kf2 {[%clk 0:00:24]}  b5 {[%clk 0:00:17]} 29. b3 {[%clk 0:00:23]}  bxc4 {[%clk 0:00:17]} 30. Bxc4 {[%clk 0:00:24]}  a4 {[%clk 0:00:16]} 31. Rc7 {[%clk 0:00:24]}  axb3 {[%clk 0:00:15]} 32. axb3 {[%clk 0:00:25]}  Rfc8 {[%clk 0:00:14]} 33. Ree7 {[%clk 0:00:25]}  Rxc7 {[%clk 0:00:14]} 34. Rxc7 {[%clk 0:00:25]}  Rc8 {[%clk 0:00:14]} 35. Rxc8+ {[%clk 0:00:25]}  Bxc8 {[%clk 0:00:15]} 36. Ke3 {[%clk 0:00:26]}  g5 {[%clk 0:00:14]} 37. Ke4 {[%clk 0:00:25]}  gxf4 {[%clk 0:00:14]} 38. gxf4 {[%clk 0:00:26]}  Bb7+ {[%clk 0:00:14]} 39. Kf5 {[%clk 0:00:26]}  Kg7 {[%clk 0:00:14]} 40. Ke6 {[%clk 0:00:26]}  Kg6 {[%clk 0:00:14]} 41. Bd3+ {[%clk 0:00:26]}  Kg7 {[%clk 0:00:12]} 42. Kd6 {[%clk 0:00:26]}  h5 {[%clk 0:00:07]} 43. Kxc5 {[%clk 0:00:26]}  Kf7 {[%clk 0:00:07]} 44. Bc4+ {[%clk 0:00:26]}  Kg6 {[%clk 0:00:07]} 45. Bd3+ {[%clk 0:00:24]}  Kf7 {[%clk 0:00:08]} 46. Kd6 {[%clk 0:00:24]}  Bc8 {[%clk 0:00:05]} 47. b4 {[%clk 0:00:24]}  Bb7 {[%clk 0:00:05]} 48. b5 {[%clk 0:00:24]}  Bf3 {[%clk 0:00:04]} 49. b6 {[%clk 0:00:24]}  Bg2 {[%clk 0:00:04]} 50. Bf5 {[%clk 0:00:22]}  Bf3 {[%clk 0:00:02]} 51. h4 {[%clk 0:00:22]}  Bg2 {[%clk 0:00:01]} 52. Be6+ {[%clk 0:00:23]} 1-0


[Site "https://www.chess.com"]

[Event "Titled Tuesday Blitz April 25 Late 2023"]
[White "Jaskolka, Tomasz"]
[Black "Leschinsky, Gary"]
[WhiteFideId "1170791"]
[BlackFideId "30951321"]
[WhiteElo "2155"]
[BlackElo "1855"]
[Result "1-0"]
[Round "02"]
[TimeControl "180+2"]
[Date "2023.04.25"]
[WhiteClock "0:00:22"]
[BlackClock "0:00:59"]

1. d4 {[%clk 0:03:00]}  d5 {[%clk 0:02:59]} 2. Bf4 {[%clk 0:03:00]}  c5 {[%clk 0:02:59]} 3. e3 {[%clk 0:03:00]}  Nc6 {[%clk 0:02:59]} 4. c3 {[%clk 0:03:00]}  cxd4 {[%clk 0:02:55]} 5. exd4 {[%clk 0:03:00]}  f6 {[%clk 0:02:56]} 6. Nf3 {[%clk 0:02:50]}  g5 {[%clk 0:02:54]} 7. Bg3 {[%clk 0:02:48]}  h5 {[%clk 0:02:55]} 8. h4 {[%clk 0:02:48]}  g4 {[%clk 0:02:55]} 9. Nfd2 {[%clk 0:02:48]}  Bf5 {[%clk 0:02:54]} 10. Nb3 {[%clk 0:02:47]}  e6 {[%clk 0:02:54]} 11. Bd3 {[%clk 0:02:47]}  Nh6 {[%clk 0:02:51]} 12. Bf4 {[%clk 0:02:45]}  Bd6 {[%clk 0:02:44]} 13. Bxh6 {[%clk 0:02:44]}  Rxh6 {[%clk 0:02:45]} 14. Bxf5 {[%clk 0:02:44]}  exf5 {[%clk 0:02:46]} 15. N1d2 {[%clk 0:02:38]}  Kf7 {[%clk 0:02:44]} 16. Qe2 {[%clk 0:02:33]}  Qd7 {[%clk 0:02:41]} 17. O-O-O {[%clk 0:02:33]}  Rhh8 {[%clk 0:02:41]} 18. Qb5 {[%clk 0:02:27]}  Be7 {[%clk 0:02:31]} 19. Rde1 {[%clk 0:02:18]}  a6 {[%clk 0:02:30]} 20. Qb6 {[%clk 0:02:17]}  Rhc8 {[%clk 0:02:25]} 21. Nc5 {[%clk 0:01:57]}  Bxc5 {[%clk 0:02:17]} 22. dxc5 {[%clk 0:01:50]}  Ne5 {[%clk 0:02:15]} 23. Kb1 {[%clk 0:01:38]}  Rc6 {[%clk 0:02:12]} 24. Qa5 {[%clk 0:01:31]}  Nd3 {[%clk 0:02:09]} 25. Re3 {[%clk 0:01:28]}  Nxc5 {[%clk 0:02:03]} 26. Rhe1 {[%clk 0:01:26]}  Ne4 {[%clk 0:02:02]} 27. Nb3 {[%clk 0:00:55]}  b6 {[%clk 0:01:55]} 28. Qa4 {[%clk 0:00:53]}  b5 {[%clk 0:01:50]} 29. Qa5 {[%clk 0:00:48]}  f4 {[%clk 0:01:44]} 30. R3e2 {[%clk 0:00:43]}  f3 {[%clk 0:01:39]} 31. gxf3 {[%clk 0:00:42]}  gxf3 {[%clk 0:01:40]} 32. Re3 {[%clk 0:00:43]}  Rc4 {[%clk 0:01:28]} 33. Nd4 {[%clk 0:00:40]}  b4 {[%clk 0:01:13]} 34. Rxe4 {[%clk 0:00:33]}  dxe4 {[%clk 0:01:09]} 35. Qxh5+ {[%clk 0:00:33]}  Kf8 {[%clk 0:01:05]} 36. Qh8+ {[%clk 0:00:25]}  Kf7 {[%clk 0:01:02]} 37. Qh7+ {[%clk 0:00:20]}  Ke8 {[%clk 0:01:01]} 38. Rxe4+ {[%clk 0:00:20]}  Kd8 {[%clk 0:01:01]} 39. Qg8+ {[%clk 0:00:20]}  Kc7 {[%clk 0:00:59]} 40. Qxc4+ {[%clk 0:00:21]}  Kb7 {[%clk 0:00:59]} 41. Qxb4+ {[%clk 0:00:21]}  Ka7 {[%clk 0:00:59]} 42. Re7 {[%clk 0:00:22]} 1-0


[Site "https://www.chess.com"]

[Event "Titled Tuesday Blitz April 25 Late 2023"]
[White "Meunier-Pion, Jean"]
[Black "Botez, Alexandra"]
[WhiteFideId "20685327"]
[BlackFideId "2603365"]
[WhiteElo "2124"]
[BlackElo "2059"]
[Result "1-0"]
[Round "02"]
[TimeControl "180+2"]
[Date "2023.04.25"]
[WhiteClock "0:00:05"]
[BlackClock "0:00:06"]

1. e4 {[%clk 0:03:00]}  e6 {[%clk 0:02:58]} 2. d4 {[%clk 0:03:00]}  d5 {[%clk 0:02:58]} 3. Nd2 {[%clk 0:03:01]}  c5 {[%clk 0:02:57]} 4. Ngf3 {[%clk 0:02:58]}  Nf6 {[%clk 0:02:56]} 5. exd5 {[%clk 0:02:58]}  Qxd5 {[%clk 0:02:55]} 6. Bc4 {[%clk 0:02:57]}  Qd7 {[%clk 0:02:54]} 7. O-O {[%clk 0:02:51]}  cxd4 {[%clk 0:02:52]} 8. Nb3 {[%clk 0:02:48]}  Nc6 {[%clk 0:02:49]} 9. Nbxd4 {[%clk 0:02:45]}  Nxd4 {[%clk 0:02:45]} 10. Nxd4 {[%clk 0:02:46]}  a6 {[%clk 0:02:45]} 11. Re1 {[%clk 0:02:28]}  Be7 {[%clk 0:02:34]} 12. c3 {[%clk 0:02:20]}  O-O {[%clk 0:02:29]} 13. Qf3 {[%clk 0:01:28]}  Qc7 {[%clk 0:02:18]} 14. Bb3 {[%clk 0:01:25]}  Bd6 {[%clk 0:02:08]} 15. Bg5 {[%clk 0:01:19]}  Bxh2+ {[%clk 0:02:00]} 16. Kh1 {[%clk 0:01:19]}  Be5 {[%clk 0:01:54]} 17. Qe2 {[%clk 0:01:03]}  Bxd4 {[%clk 0:01:36]} 18. cxd4 {[%clk 0:01:03]}  Nd5 {[%clk 0:01:37]} 19. Rac1 {[%clk 0:00:59]}  Qd6 {[%clk 0:01:33]} 20. Qe4 {[%clk 0:00:50]}  Bd7 {[%clk 0:01:22]} 21. Bc2 {[%clk 0:00:42]}  f5 {[%clk 0:01:17]} 22. Qf3 {[%clk 0:00:33]}  h6 {[%clk 0:01:13]} 23. Bh4 {[%clk 0:00:31]}  Nf6 {[%clk 0:01:06]} 24. Bg3 {[%clk 0:00:29]}  Qxd4 {[%clk 0:01:04]} 25. Rcd1 {[%clk 0:00:18]}  Qb6 {[%clk 0:00:56]} 26. Bb3 {[%clk 0:00:18]}  Rae8 {[%clk 0:00:53]} 27. Bd6 {[%clk 0:00:17]}  Rf7 {[%clk 0:00:50]} 28. Be5 {[%clk 0:00:17]}  Ne4 {[%clk 0:00:48]} 29. Bd4 {[%clk 0:00:16]}  Qc7 {[%clk 0:00:48]} 30. Be3 {[%clk 0:00:13]}  Qd8 {[%clk 0:00:48]} 31. Ba4 {[%clk 0:00:10]}  Qh4+ {[%clk 0:00:47]} 32. Kg1 {[%clk 0:00:08]}  Bxa4 {[%clk 0:00:47]} 33. Rd4 {[%clk 0:00:08]}  Bc6 {[%clk 0:00:47]} 34. Qe2 {[%clk 0:00:08]}  Qh5 {[%clk 0:00:45]} 35. Qxh5 {[%clk 0:00:07]}  Nf6 {[%clk 0:00:40]} 36. Qe2 {[%clk 0:00:07]}  Bd5 {[%clk 0:00:36]} 37. b3 {[%clk 0:00:07]}  Ne4 {[%clk 0:00:35]} 38. f3 {[%clk 0:00:07]}  Nc3 {[%clk 0:00:35]} 39. Qd2 {[%clk 0:00:07]}  Nb5 {[%clk 0:00:35]} 40. Rxd5 {[%clk 0:00:07]}  exd5 {[%clk 0:00:35]} 41. Qxd5 {[%clk 0:00:08]}  Nc3 {[%clk 0:00:28]} 42. Qc4 {[%clk 0:00:08]}  Nb5 {[%clk 0:00:26]} 43. Bf2 {[%clk 0:00:09]}  Rf8 {[%clk 0:00:20]} 44. Bc5 {[%clk 0:00:08]}  Rc8 {[%clk 0:00:18]} 45. Qd5 {[%clk 0:00:07]}  Rc7 {[%clk 0:00:17]} 46. Re7 {[%clk 0:00:06]}  Rxe7 {[%clk 0:00:16]} 47. Bxe7 {[%clk 0:00:07]}  g6 {[%clk 0:00:13]} 48. a4 {[%clk 0:00:05]}  Nc3 {[%clk 0:00:07]} 49. Qd8+ {[%clk 0:00:06]}  Kg7 {[%clk 0:00:07]} 50. Qd4+ {[%clk 0:00:06]}  Kg8 {[%clk 0:00:07]} 51. Qd8+ {[%clk 0:00:04]}  Kg7 {[%clk 0:00:07]} 52. Ba3 {[%clk 0:00:04]}  Ne2+ {[%clk 0:00:06]} 53. Kf2 {[%clk 0:00:04]}  Nf4 {[%clk 0:00:06]} 54. Bb2+ {[%clk 0:00:05]} 1-0


[Site "https://www.chess.com"]

[Event "Titled Tuesday Blitz April 25 Late 2023"]
[White "Pinto, Daniel"]
[Black "Dylag, Emilia"]
[WhiteFideId "3303144"]
[BlackFideId "21805172"]
[WhiteElo "2145"]
[BlackElo "1878"]
[Result "0-1"]
[Round "02"]
[TimeControl "180+2"]
[Date "2023.04.25"]
[WhiteClock "0:00:14"]
[BlackClock "0:01:14"]

1. e4 {[%clk 0:02:51]}  e5 {[%clk 0:02:56]} 2. Nf3 {[%clk 0:02:51]}  Nc6 {[%clk 0:02:55]} 3. Bb5 {[%clk 0:02:51]}  a6 {[%clk 0:02:54]} 4. Ba4 {[%clk 0:02:50]}  Nf6 {[%clk 0:02:54]} 5. O-O {[%clk 0:02:48]}  b5 {[%clk 0:02:53]} 6. Bb3 {[%clk 0:02:48]}  Be7 {[%clk 0:02:54]} 7. d3 {[%clk 0:02:48]}  O-O {[%clk 0:02:54]} 8. Bd2 {[%clk 0:02:49]}  d6 {[%clk 0:02:54]} 9. a3 {[%clk 0:02:45]}  h6 {[%clk 0:02:51]} 10. h3 {[%clk 0:02:46]}  Be6 {[%clk 0:02:48]} 11. Nc3 {[%clk 0:02:46]}  d5 {[%clk 0:02:47]} 12. exd5 {[%clk 0:02:44]}  Nxd5 {[%clk 0:02:48]} 13. Re1 {[%clk 0:02:42]}  Nxc3 {[%clk 0:02:46]} 14. Bxc3 {[%clk 0:02:39]}  Bxb3 {[%clk 0:02:47]} 15. cxb3 {[%clk 0:02:39]}  Qd5 {[%clk 0:02:47]} 16. Nxe5 {[%clk 0:02:38]}  Nxe5 {[%clk 0:02:46]} 17. Rxe5 {[%clk 0:02:38]}  Qd6 {[%clk 0:02:47]} 18. Re3 {[%clk 0:02:34]}  Rad8 {[%clk 0:02:46]} 19. Qf3 {[%clk 0:02:31]}  Bg5 {[%clk 0:02:46]} 20. Re5 {[%clk 0:02:23]}  Qxd3 {[%clk 0:02:43]} 21. Qxd3 {[%clk 0:02:20]}  Rxd3 {[%clk 0:02:44]} 22. Rc5 {[%clk 0:02:21]}  Bf4 {[%clk 0:02:36]} 23. g3 {[%clk 0:02:11]}  Bd6 {[%clk 0:02:34]} 24. Rc6 {[%clk 0:02:11]}  a5 {[%clk 0:02:32]} 25. Bxa5 {[%clk 0:02:10]}  Rxb3 {[%clk 0:02:31]} 26. Bc3 {[%clk 0:02:09]}  Re8 {[%clk 0:02:30]} 27. Kf1 {[%clk 0:02:04]}  b4 {[%clk 0:02:24]} 28. axb4 {[%clk 0:02:00]}  Bxb4 {[%clk 0:02:24]} 29. Rxc7 {[%clk 0:02:01]}  Bxc3 {[%clk 0:02:18]} 30. bxc3 {[%clk 0:02:02]}  Rb2 {[%clk 0:02:12]} 31. Raa7 {[%clk 0:01:39]}  Rf8 {[%clk 0:02:03]} 32. c4 {[%clk 0:01:36]}  Rc2 {[%clk 0:02:00]} 33. Kg2 {[%clk 0:01:32]}  g6 {[%clk 0:01:55]} 34. Kf3 {[%clk 0:01:31]}  Rc3+ {[%clk 0:01:47]} 35. Ke4 {[%clk 0:01:30]}  Rc2 {[%clk 0:01:48]} 36. f3 {[%clk 0:01:28]}  Rd2 {[%clk 0:01:46]} 37. Ke3 {[%clk 0:01:18]}  Rd1 {[%clk 0:01:45]} 38. Ke2 {[%clk 0:01:18]}  Rc1 {[%clk 0:01:44]} 39. Kd2 {[%clk 0:01:00]}  Rf1 {[%clk 0:01:42]} 40. Ra3 {[%clk 0:00:57]}  Rd8+ {[%clk 0:01:39]} 41. Ke2 {[%clk 0:00:43]}  Rfd1 {[%clk 0:01:36]} 42. c5 {[%clk 0:00:39]}  R1d2+ {[%clk 0:01:21]} 43. Ke3 {[%clk 0:00:36]}  Rc2 {[%clk 0:01:20]} 44. Rd3 {[%clk 0:00:24]}  Re8+ {[%clk 0:01:17]} 45. Kd4 {[%clk 0:00:21]}  Rd8+ {[%clk 0:01:17]} 46. Ke4 {[%clk 0:00:21]}  Re2+ {[%clk 0:01:14]} 47. Kf4 {[%clk 0:00:14]}  Rxd3 {[%clk 0:01:14]} 0-1


[Site "https://www.chess.com"]

[Event "Titled Tuesday Blitz April 25 Late 2023"]
[White "Lorenzo De La Riva, Lazaro"]
[Black "Broca Jimenez, Fernando"]
[WhiteFideId "2268809"]
[BlackFideId "5104742"]
[WhiteElo "2294"]
[BlackElo "2062"]
[Result "1-0"]
[Round "02"]
[TimeControl "180+2"]
[Date "2023.04.25"]
[WhiteClock "0:00:35"]
[BlackClock "0:00:02"]

1. c4 {[%clk 0:03:00]}  g6 {[%clk 0:02:58]} 2. d4 {[%clk 0:03:00]}  Bg7 {[%clk 0:02:59]} 3. e4 {[%clk 0:02:59]}  c5 {[%clk 0:02:56]} 4. d5 {[%clk 0:02:59]}  e6 {[%clk 0:02:53]} 5. Nc3 {[%clk 0:02:58]}  exd5 {[%clk 0:02:51]} 6. exd5 {[%clk 0:02:56]}  d6 {[%clk 0:02:51]} 7. Bd3 {[%clk 0:02:54]}  Nf6 {[%clk 0:02:49]} 8. h3 {[%clk 0:02:54]}  O-O {[%clk 0:02:48]} 9. Nf3 {[%clk 0:02:55]}  Re8+ {[%clk 0:02:42]} 10. Be3 {[%clk 0:02:53]}  Nbd7 {[%clk 0:02:43]} 11. O-O {[%clk 0:02:50]}  Ne5 {[%clk 0:02:43]} 12. Nxe5 {[%clk 0:02:49]}  Rxe5 {[%clk 0:02:44]} 13. Bf4 {[%clk 0:02:49]}  Re8 {[%clk 0:02:44]} 14. Qd2 {[%clk 0:02:49]}  a6 {[%clk 0:02:30]} 15. a4 {[%clk 0:02:47]}  Qc7 {[%clk 0:02:25]} 16. g4 {[%clk 0:02:18]}  Nd7 {[%clk 0:02:13]} 17. Ne4 {[%clk 0:02:11]}  Ne5 {[%clk 0:02:13]} 18. Be2 {[%clk 0:02:08]}  Bd7 {[%clk 0:02:09]} 19. Bg5 {[%clk 0:02:02]}  Nxc4 {[%clk 0:02:00]} 20. Qf4 {[%clk 0:01:55]}  f5 {[%clk 0:00:48]} 21. gxf5 {[%clk 0:01:22]}  Bxf5 {[%clk 0:00:49]} 22. Ng3 {[%clk 0:01:22]}  Nxb2 {[%clk 0:00:14]} 23. Nxf5 {[%clk 0:01:20]}  Rxe2 {[%clk 0:00:14]} 24. Nxg7 {[%clk 0:01:14]}  Qxg7 {[%clk 0:00:09]} 25. Qxd6 {[%clk 0:01:01]}  Rae8 {[%clk 0:00:10]} 26. Rab1 {[%clk 0:00:58]}  Qf8 {[%clk 0:00:04]} 27. Qxf8+ {[%clk 0:00:55]}  Rxf8 {[%clk 0:00:05]} 28. d6 {[%clk 0:00:55]}  Nc4 {[%clk 0:00:04]} 29. d7 {[%clk 0:00:54]}  Rd2 {[%clk 0:00:04]} 30. Rfd1 {[%clk 0:00:34]}  Rxd1+ {[%clk 0:00:02]} 31. Rxd1 {[%clk 0:00:35]} 1-0


[Site "https://www.chess.com"]

[Event "Titled Tuesday Blitz April 25 Late 2023"]
[White "Shapiro, Viktor"]
[Black "Uddin, Mubassar"]
[WhiteFideId "4175700"]
[BlackFideId "2093944"]
[WhiteElo "2152"]
[BlackElo "2051"]
[Result "1-0"]
[Round "02"]
[TimeControl "180+2"]
[Date "2023.04.25"]
[WhiteClock "0:01:03"]
[BlackClock "0:00:05"]

1. c4 {[%clk 0:03:00]}  e6 {[%clk 0:02:59]} 2. Nc3 {[%clk 0:03:01]}  d5 {[%clk 0:02:59]} 3. d4 {[%clk 0:03:01]}  c5 {[%clk 0:02:59]} 4. e3 {[%clk 0:02:59]}  cxd4 {[%clk 0:02:59]} 5. exd4 {[%clk 0:02:59]}  Nf6 {[%clk 0:02:59]} 6. Nf3 {[%clk 0:03:00]}  Be7 {[%clk 0:02:59]} 7. Bf4 {[%clk 0:02:43]}  O-O {[%clk 0:02:58]} 8. Be2 {[%clk 0:02:32]}  dxc4 {[%clk 0:02:57]} 9. Bxc4 {[%clk 0:02:32]}  Nc6 {[%clk 0:02:58]} 10. O-O {[%clk 0:02:32]}  b6 {[%clk 0:02:58]} 11. d5 {[%clk 0:02:29]}  Na5 {[%clk 0:02:54]} 12. d6 {[%clk 0:02:09]}  Nxc4 {[%clk 0:02:52]} 13. dxe7 {[%clk 0:02:10]}  Qxe7 {[%clk 0:02:51]} 14. Qe2 {[%clk 0:02:10]}  Na5 {[%clk 0:02:25]} 15. Rfd1 {[%clk 0:02:08]}  Rd8 {[%clk 0:02:15]} 16. Rxd8+ {[%clk 0:02:07]}  Qxd8 {[%clk 0:02:16]} 17. Rd1 {[%clk 0:02:07]}  Qe7 {[%clk 0:02:13]} 18. Bd6 {[%clk 0:02:07]}  Qe8 {[%clk 0:02:09]} 19. Be5 {[%clk 0:01:56]}  Nd7 {[%clk 0:01:51]} 20. Qb5 {[%clk 0:01:42]}  f6 {[%clk 0:01:19]} 21. Bg3 {[%clk 0:01:36]}  Kf7 {[%clk 0:01:11]} 22. Ne4 {[%clk 0:01:31]}  Qe7 {[%clk 0:00:58]} 23. Nd6+ {[%clk 0:01:28]}  Kg8 {[%clk 0:00:56]} 24. b4 {[%clk 0:01:13]}  a6 {[%clk 0:00:28]} 25. Qa4 {[%clk 0:01:12]}  Nb7 {[%clk 0:00:15]} 26. Nxb7 {[%clk 0:01:11]}  Bxb7 {[%clk 0:00:16]} 27. Qxd7 {[%clk 0:01:11]}  Qxd7 {[%clk 0:00:14]} 28. Rxd7 {[%clk 0:01:11]}  Bd5 {[%clk 0:00:15]} 29. a3 {[%clk 0:01:09]}  Rc8 {[%clk 0:00:14]} 30. Rc7 {[%clk 0:01:08]}  Rd8 {[%clk 0:00:11]} 31. h4 {[%clk 0:01:08]}  h5 {[%clk 0:00:09]} 32. Bf4 {[%clk 0:01:04]}  Kh7 {[%clk 0:00:09]} 33. Be3 {[%clk 0:01:04]}  Kh8 {[%clk 0:00:10]} 34. Bxb6 {[%clk 0:01:04]}  Rb8 {[%clk 0:00:07]} 35. Bc5 {[%clk 0:01:04]}  a5 {[%clk 0:00:04]} 36. Nd4 {[%clk 0:01:03]}  axb4 {[%clk 0:00:04]} 37. axb4 {[%clk 0:01:04]}  Ra8 {[%clk 0:00:03]} 38. f3 {[%clk 0:01:04]}  Ra1+ {[%clk 0:00:03]} 39. Kh2 {[%clk 0:01:04]}  Ra2 {[%clk 0:00:04]} 40. Kg3 {[%clk 0:01:04]}  Kh7 {[%clk 0:00:04]} 41. b5 {[%clk 0:01:04]}  Kg6 {[%clk 0:00:04]} 42. b6 {[%clk 0:01:04]}  Rb2 {[%clk 0:00:05]} 43. Bf8 {[%clk 0:01:03]}  e5 {[%clk 0:00:05]} 44. Rxg7+ {[%clk 0:01:02]}  Kh6 {[%clk 0:00:05]} 45. Nf5# {[%clk 0:01:03]} 1-0


[Site "https://www.chess.com"]

[Event "Titled Tuesday Blitz April 25 Late 2023"]
[White "Seletsky, Grigory"]
[Black "Dahlgren, James Allen"]
[WhiteFideId "14112191"]
[BlackFideId "22256873"]
[WhiteElo "2490"]
[BlackElo "1824"]
[Result "1-0"]
[Round "02"]
[TimeControl "180+2"]
[Date "2023.04.25"]
[WhiteClock "0:01:58"]
[BlackClock "0:01:58"]

1. e4 {[%clk 0:02:59]}  e6 {[%clk 0:03:00]} 2. d3 {[%clk 0:02:58]}  c5 {[%clk 0:03:01]} 3. Nd2 {[%clk 0:02:57]}  d5 {[%clk 0:03:02]} 4. g3 {[%clk 0:02:57]}  Nf6 {[%clk 0:03:02]} 5. Bg2 {[%clk 0:02:58]}  Be7 {[%clk 0:03:02]} 6. f4 {[%clk 0:02:58]}  O-O {[%clk 0:03:03]} 7. Ngf3 {[%clk 0:02:57]}  Nc6 {[%clk 0:03:02]} 8. e5 {[%clk 0:02:56]}  Nd7 {[%clk 0:03:02]} 9. c3 {[%clk 0:02:56]}  b5 {[%clk 0:03:03]} 10. O-O {[%clk 0:02:56]}  b4 {[%clk 0:03:03]} 11. c4 {[%clk 0:02:54]}  a5 {[%clk 0:03:02]} 12. a4 {[%clk 0:02:47]}  Nb6 {[%clk 0:03:02]} 13. b3 {[%clk 0:02:46]}  Bb7 {[%clk 0:03:00]} 14. Bb2 {[%clk 0:02:42]}  d4 {[%clk 0:02:59]} 15. Ne4 {[%clk 0:02:40]}  f5 {[%clk 0:02:55]} 16. exf6 {[%clk 0:02:38]}  gxf6 {[%clk 0:02:56]} 17. Qe2 {[%clk 0:02:36]}  Qd7 {[%clk 0:02:54]} 18. Rae1 {[%clk 0:02:35]}  Rae8 {[%clk 0:02:53]} 19. Bh3 {[%clk 0:02:34]}  Nd8 {[%clk 0:02:50]} 20. Nh4 {[%clk 0:02:28]}  f5 {[%clk 0:02:47]} 21. Ng5 {[%clk 0:02:27]}  Bxg5 {[%clk 0:02:37]} 22. fxg5 {[%clk 0:02:27]}  Nf7 {[%clk 0:02:27]} 23. Bc1 {[%clk 0:02:21]}  Nd6 {[%clk 0:02:02]} 24. Qe5 {[%clk 0:02:05]}  Qc6 {[%clk 0:02:00]} 25. Bg2 {[%clk 0:02:03]}  Qc7 {[%clk 0:02:00]} 26. Bxb7 {[%clk 0:01:59]}  Qxb7 {[%clk 0:01:58]} 27. Qxd6 {[%clk 0:01:58]} 1-0


[Site "https://www.chess.com"]